bitfinex/quotes_ETHUSD_20240907
["timestamp","ask_amount","ask_price","bid_price","bid_amount"]
[1725750898152,2.33106573,2270.7,2270.6,4.40412]
[1725750899380,0.04736573,2270.7,2270.6,8.80824]
[1725750899581,0.04736573,2270.7,2270.4,4.4045]
[1725750899582,2.2837,2271.0,2270.8,4.40359]
[1725750899877,0.04738384,2270.9,2270.8,4.40359]
[1725750901276,1.01247217,2270.9,2270.8,4.40359]
[1725750901486,1.01247217,2270.9,2270.6,4.404]
[1725750901792,3.80641711,2270.8,2270.5,4.4043]
[1725750901983,2.33097375,2270.7,2270.3,4.40466]
[1725750902145,2.2837,2270.5,2269.8,0.92362195]
[1725750902489,2.2837,2270.5,2270.2,4.4048]
[1725750902490,1.52271711,2270.4,2270.2,4.4048]
[1725750902781,1.56991804,2270.4,2270.1,8.80986]
[1725750902939,0.04720093,2270.4,2270.3,4.4047]
[1725750903156,0.04720093,2270.4,2270.3,8.8094]
[1725750903354,2.3818,2270.7,2270.4,4.40437]
[1725750903594,0.04732,2270.6,2270.4,4.40437]
[1725750904162,0.04732,2270.6,2270.5,4.40431]
[1725750906295,0.04732,2270.6,2270.4,4.40448]
[1725750906667,0.04732,2270.6,2270.4,8.80887]
[1725750907759,0.04732,2270.6,2270.4,4.40439]
[1725750908271,0.04732,2270.6,2270.4,8.8088]
[1725750910391,0.04732,2270.6,2270.4,4.40439]
[1725750910596,1.01240833,2270.6,2270.3,4.40468]
[1725750911198,2.3818,2270.4,2270.2,4.40473]
[1725750911565,0.04695136,2270.3,2270.2,4.40473]
[1725750912373,0.04695136,2270.3,2270.0,8.81032]
[1725750913895,0.04695136,2270.3,2270.1,4.40507]
[1725750914701,1.56966847,2270.3,2270.0,4.40513]
[1725750915765,1.56966847,2270.3,2270.0,8.8103]
[1725750915964,1.56966847,2270.3,2270.0,8.81032]
[1725750916810,1.56966847,2270.3,2270.0,4.40513]
[1725750917166,0.04695136,2270.3,2270.1,4.40507]
[1725750917481,0.04695136,2270.3,2270.2,4.40489]
[1725750917976,3.0,2270.5,2270.3,4.40467]
[1725750918190,0.0438317,2270.4,2270.3,4.40467]
[1725750918709,0.0438317,2270.4,2270.2,8.80978]
[1725750919274,0.0438317,2270.4,2270.2,4.40489]
[1725750919817,0.0438317,2270.4,2270.2,8.80968]
[1725750920300,0.0438317,2270.4,2270.2,4.40479]
[1725750921589,0.0438317,2270.4,2270.2,8.80958]
[1725750921777,0.0438317,2270.4,2270.3,8.8094]
[1725750921982,1.52271711,2270.7,2270.4,4.40434]
[1725750922224,0.04353705,2270.6,2270.5,4.40431]
[1725750927631,2.91317736,2270.6,2270.2,4.40487]
[1725750927826,1.52271711,2270.4,2270.1,4.4049]
[1725750928032,0.04039624,2270.3,2270.1,4.4049]
[1725750928188,0.04039624,2270.3,2270.1,8.80988]
[1725750928387,0.04039624,2270.3,2270.2,4.40489]
[1725750930085,0.96508833,2270.5,2270.2,4.40489]
[1725750930585,0.04041372,2270.4,2270.2,4.40489]
[1725750933808,1.56313083,2270.4,2270.2,4.40489]
[1725750934010,2.3977,2270.3,2270.2,4.40489]
[1725750934236,2.43813204,2270.3,2270.1,4.4049]
[1725750935442,0.04043204,2270.3,2270.1,8.8099]
[1725750935623,0.04043204,2270.3,2270.1,4.4049]
[1725750937458,0.04043204,2270.3,2270.2,8.80978]
[1725750937956,4.41356513,2270.7,2270.3,4.40463]
[1725750938529,4.88550544,2270.7,2270.3,4.40463]
[1725750939430,0.47194031,2270.6,2270.3,4.40463]
[1725750940146,0.96508833,2270.6,2270.3,4.40463]
[1725750940534,0.96508833,2270.6,2270.2,4.40489]
[1725750940535,0.96508833,2270.6,2270.4,4.4045]
[1725750941449,0.04028637,2270.5,2270.4,4.4045]
[1725750945853,1.56300348,2270.5,2270.1,4.40501]
[1725750946031,1.56300348,2270.5,2270.1,8.80996]
[1725750946430,1.56300348,2270.5,2270.1,4.40495]
[1725750946730,1.56300348,2270.5,2269.9,11.16457]
[1725750946731,1.52271711,2270.3,2269.9,11.16457]
[1725750946949,1.52271711,2270.3,2270.0,4.40518]
[1725750947264,0.04209949,2270.2,2270.0,4.40518]
[1725750947637,1.52271711,2270.3,2270.0,4.40518]
[1725750947842,0.04209949,2270.2,2270.0,4.40518]
[1725750948044,1.52271711,2270.3,2270.0,4.40518]
[1725750948260,0.04209949,2270.2,2270.0,4.40518]
[1725750948465,1.52271711,2270.3,2270.0,4.40518]
[1725750948776,0.04198096,2270.1,2270.0,4.40518]
[1725750952269,0.08394463,2270.1,2270.0,4.40518]
[1725750956946,0.04198096,2270.1,2270.0,4.40518]
[1725750958739,0.04198096,2270.1,2269.7,6.75963]
[1725750958936,1.52271711,2269.9,2269.6,4.406]
[1725750959253,1.52271711,2269.9,2269.5,4.40607]
[1725750959254,3.89821711,2269.9,2269.5,4.40607]
[1725750962682,1.52271711,2269.7,2269.5,4.40607]
[1725750963587,1.52271711,2269.7,2269.3,4.40649]
[1725750963871,2.4667,2269.6,2269.3,4.40649]
[1725750964080,2.4667,2269.6,2269.3,8.81302]
[1725750964585,2.4667,2269.6,2269.4,4.40641]
[1725750966178,2.4667,2269.6,2269.4,4.40635]
[1725750966549,2.4667,2269.6,2269.3,4.40663]
[1725750966904,2.93864031,2269.6,2269.3,4.40663]
[1725750968658,2.93864031,2269.6,2269.4,4.40643]
[1725750968659,2.4667,2269.6,2269.4,4.40643]
[1725750970152,0.47194031,2269.9,2269.5,0.08812403]
[1725750970353,2.50868096,2270.1,2270.0,8.81056]
[1725750970354,0.04198096,2270.1,2270.0,8.81056]
[1725750970582,0.04198096,2270.1,2270.0,11.16216]
[1725750971772,0.04198096,2270.1,2270.0,4.40528]
[1725750972107,1.00706929,2270.1,2270.0,4.40528]
[1725750973002,1.00706929,2270.1,2269.9,4.40547]
[1725750973169,1.00706929,2270.1,2270.0,4.40528]
[1725750973498,0.04198096,2270.1,2270.0,4.40528]
[1725750976506,3.47376929,2270.1,2269.7,4.40573]
[1725750976676,4.14296989,2270.0,2269.8,4.40564]
[1725750977011,4.6149102,2270.0,2269.7,8.8115]
[1725750980281,4.6149102,2270.0,2269.7,4.40573]
[1725750980518,4.6149102,2270.0,2269.7,8.81151]
[1725750980807,2.50868096,2270.1,2269.8,4.40563]
[1725750981796,2.50868096,2270.1,2269.7,4.40573]
[1725750982009,2.98062127,2270.1,2269.7,4.40573]
[1725750982212,3.47376929,2270.1,2269.7,4.40573]
[1725750982517,3.47376929,2270.1,2269.7,8.81149]
[1725750982719,0.04198096,2270.1,2269.8,4.40556]
[1725750984622,0.51392127,2270.1,2269.8,4.40556]
[1725750986226,0.04198096,2270.1,2269.8,4.40556]
[1725750987204,0.04198096,2270.1,2270.0,4.40528]
[1725750988131,0.04198096,2270.1,2270.0,11.26766042]
[1725750988299,0.04198096,2270.1,2270.0,12.39442646]
[1725750991576,0.04198096,2270.1,2270.0,16.79970646]
[1725750992883,0.47194031,2270.8,2270.5,2.369]
[1725750993042,2.37297842,2271.2,2270.8,4.40373]
[1725750993255,2.86612644,2271.2,2271.0,8.80645]
[1725750993457,2.86612644,2271.2,2271.0,4.40321]
[1725750993652,2.86612644,2271.2,2271.0,8.80645]
[1725750994155,2.86612644,2271.2,2271.1,4.40315]
[1725750994778,2.86612644,2271.2,2271.0,4.40321]
[1725750994977,2.80284802,2271.1,2270.0,7.41938799]
[1725750995176,3.64982187,2270.6,2270.0,4.40514]
[1725750995385,3.30812167,2270.5,2270.2,4.40478]
[1725750995757,3.30812167,2270.5,2270.3,4.40467]
[1725750996060,3.30812167,2270.5,2270.2,4.40478]
[1725750996464,3.30812167,2270.5,2270.2,8.80958]
[1725750996698,0.99842167,2270.5,2270.4,4.40451]
[1725750996879,5.3097,2270.9,2270.6,4.40412]
[1725750997081,5.3097,2270.9,2270.7,4.40389]
[1725750997654,5.83618136,2270.9,2270.7,4.40389]
[1725750997860,5.83618136,2270.9,2270.5,4.40431]
[1725750997861,4.64824354,2270.8,2270.5,4.4042]
[1725750998061,4.64824354,2270.8,2270.6,4.40411]
[1725750999298,0.99842167,2270.8,2270.7,4.40392]
[1725750999499,0.52648136,2270.8,2270.7,4.40392]
[1725751001293,3.24992167,2270.8,2270.5,4.40431]
[1725751001999,3.24992167,2270.8,2270.6,4.404]
[1725751003773,2.77798136,2270.8,2270.6,4.404]
[1725751003970,2.2515,2270.8,2270.7,4.40392]
[1725751004291,3.0,2270.9,2270.8,4.40373]
[1725751006398,3.52648136,2270.9,2270.8,4.40373]
[1725751006564,3.99842167,2270.9,2270.7,4.40392]
[1725751006891,0.99842167,2270.8,2270.7,4.40392]
[1725751008613,0.52648136,2270.8,2270.7,4.40392]
[1725751015828,0.52648136,2270.8,2270.7,8.80784]
[1725751015994,0.06327842,2271.2,2271.1,4.40315]
[1725751016402,0.06327842,2271.2,2271.0,4.40326]
[1725751016791,0.06327842,2271.2,2271.0,4.40324]
[1725751017389,0.06327842,2271.2,2271.0,8.80649]
[1725751017911,0.06327842,2271.2,2271.0,4.40324]
[1725751018236,0.06327842,2271.2,2271.0,8.80648]
[1725751018535,0.06327842,2271.2,2271.1,4.40315]
[1725751018820,2.2638,2271.1,2270.8,4.40357]
[1725751019031,3.64982187,2270.9,2270.6,4.40396]
[1725751019337,4.17630323,2270.9,2270.6,4.40396]
[1725751020191,4.17630323,2270.9,2270.6,8.80798]
[1725751021016,4.17630323,2270.9,2270.6,4.40396]
[1725751021712,2.2638,2270.8,2270.6,4.40396]
[1725751021892,2.2638,2270.8,2270.4,4.40436]
[1725751022090,0.52648136,2270.7,2270.4,4.40436]
[1725751022686,0.52648136,2270.7,2270.5,4.40427]
[1725751022899,3.64982187,2270.9,2270.5,4.40427]
[1725751022900,3.64982187,2270.9,2270.7,4.40389]
[1725751023738,3.64982187,2270.9,2270.7,4.40392]
[1725751023948,3.64982187,2271.1,2270.9,4.40351]
[1725751024097,3.0,2271.0,2270.9,4.40351]
[1725751024548,4.17630323,2271.1,2270.9,4.40351]
[1725751025601,4.17630323,2271.1,2271.0,4.40334]
[1725751027023,4.64824354,2271.1,2270.4,2.2831]
[1725751027338,0.52648136,2271.0,2270.8,4.40372]
[1725751029140,0.52648136,2271.0,2270.9,4.40354]
[1725751030501,0.06327842,2271.2,2270.7,6.68701]
[1725751030818,0.06327842,2271.2,2271.1,4.40315]
[1725751032119,4.71152196,2271.2,2270.9,4.4035]
[1725751032332,3.64982187,2271.0,2270.9,8.80694]
[1725751032630,4.17630323,2271.0,2270.9,8.80694]
[1725751033417,3.64982187,2271.0,2270.9,8.80694]
[1725751033633,3.64982187,2271.0,2270.9,9.915944]
[1725751036355,3.64982187,2271.0,2270.9,8.80694]
[1725751036816,3.64982187,2271.0,2270.9,4.40344]
[1725751041950,0.47194031,2271.1,2271.0,4.40334]
[1725751042157,1.99175599,2271.1,2271.0,4.40334]
[1725751045126,2.51823735,2271.1,2271.0,4.40334]
[1725751046270,2.04629704,2271.1,2271.0,4.40334]
[1725751046468,2.04629704,2271.1,2271.0,9.687358]
[1725751047142,2.04629704,2271.1,2271.0,8.80668]
[1725751051143,0.06327842,2271.2,2271.1,8.8063]
[1725751051344,0.06327842,2271.2,2271.1,11.1303]
[1725751051549,0.06327842,2271.2,2271.1,15.53345]
[1725751062486,0.06327842,2271.2,2271.1,19.9366]
[1725751062685,0.06327842,2271.2,2271.1,22.370597]
[1725751063387,0.06327842,2271.2,2271.1,29.773747]
[1725751063388,8.42e-06,2271.2,2271.1,29.773747]
[1725751063684,7.43,2271.8,2271.7,8.80396]
[1725751063892,2.51823735,2272.1,2272.0,4.4014]
[1725751064088,2.51823735,2272.1,2271.9,4.40158]
[1725751064293,4.87323735,2272.0,2271.9,4.40158]
[1725751065879,2.51823735,2272.0,2271.9,8.80318]
[1725751067978,2.51823735,2272.0,2271.9,4.40158]
[1725751068992,2.04629704,2272.0,2271.9,4.40158]
[1725751069369,2.51823735,2272.0,2271.9,4.40158]
[1725751069613,2.04629704,2272.0,2271.9,4.40158]
[1725751071002,2.355,2271.9,2271.6,4.40205]
[1725751071182,1.51981568,2271.7,2271.6,4.40205]
[1725751071972,2.355,2271.6,2271.4,4.40245]
[1725751072176,2.04629704,2271.5,2271.4,4.40245]
[1725751073677,1.51981568,2271.5,2271.4,4.40245]
[1725751076819,1.51981568,2271.5,2271.3,8.80542]
[1725751077021,1.51981568,2271.5,2271.3,4.40267]
[1725751077826,1.51981568,2271.5,2271.4,4.40257]
[1725751078322,1.51981568,2271.5,2271.4,8.80514]
[1725751081227,1.51981568,2271.5,2271.4,4.40257]
[1725751081396,3.06824623,2271.5,2271.2,8.80562]
[1725751081594,1.51981568,2271.3,2271.2,4.40279]
[1725751083215,1.51981568,2271.3,2271.2,8.80574]
[1725751092859,2.51824623,2271.5,2271.4,4.40257]
[1725751093166,0.99843055,2271.5,2271.4,4.40257]
[1725751093458,1.51981568,2271.8,2271.7,4.40184]
[1725751093760,2.51824623,2271.8,2271.7,4.40184]
[1725751096549,0.99843055,2271.8,2271.7,8.80382]
[1725751098943,0.52648136,2271.8,2271.7,8.80382]
[1725751099254,1.51981568,2272.0,2271.9,8.8032]
[1725751100066,2.51824623,2272.0,2271.9,8.8032]
[1725751101470,0.99843055,2272.0,2271.9,8.8032]
[1725751101761,1.51981568,2272.1,2272.0,8.8028]
[1725751103238,2.51824623,2272.1,2272.0,8.8028]
[1725751105992,2.04629704,2272.1,2272.0,8.8028]
[1725751106228,4.51981568,2272.3,2272.0,5.28168]
[1725751106356,4.51981568,2272.3,2272.2,8.80204]
[1725751107756,5.51824623,2272.3,2272.2,8.80204]
[1725751108254,5.51824623,2272.3,2272.2,4.40102]
[1725751108457,2.4726,2272.2,2272.0,8.80254]
[1725751108679,1.99176487,2272.1,2272.0,4.40124]
[1725751108886,2.51824623,2272.1,2272.0,4.40124]
[1725751110987,1.51981568,2272.1,2272.0,4.40124]
[1725751114176,4.51981568,2272.3,2272.1,4.40109]
[1725751115003,1.51981568,2272.3,2272.1,4.40109]
[1725751116265,3.52648136,2272.4,2272.1,4.40109]
[1725751116464,1.51981568,2272.3,2272.1,4.40109]
[1725751119189,0.52648136,2272.4,2272.3,4.40082]
[1725751119398,2.04629704,2272.4,2272.3,4.40082]
[1725751121384,2.51824623,2272.4,2272.2,4.40102]
[1725751121589,0.47194919,2272.3,2272.2,4.40102]
[1725751121803,0.99843055,2272.3,2272.2,4.40102]
[1725751123297,1.51981568,2272.4,2272.3,4.40082]
[1725751127226,1.51981568,2272.4,2272.3,8.80164]
[1725751127532,1.51981568,2272.4,2272.3,9.920494]
[1725751127739,0.46101947,2272.9,2272.7,4.40005]
[1725751127897,1.51981568,2272.9,2272.7,4.40005]
[1725751128641,0.52648136,2273.0,2272.7,4.40005]
[1725751128957,1.46981568,2272.9,2272.7,4.40005]
[1725751129115,1.46981568,2272.9,2272.8,4.39985]
[1725751129316,2.46824623,2272.9,2272.8,4.39985]
[1725751130748,0.52648136,2272.9,2272.8,6.78675]
[1725751130933,0.52648136,2272.9,2272.8,7.90543]
[1725751132215,2.04629704,2272.9,2272.8,4.39985]
[1725751132544,0.99843055,2272.9,2272.7,4.39995]
[1725751132750,2.51824623,2272.9,2272.7,4.39994]
[1725751133943,2.51824623,2272.9,2272.7,8.7999]
[1725751134254,2.51824623,2272.9,2272.7,4.39994]
[1725751134612,2.51824623,2272.9,2272.8,4.39985]
[1725751134815,2.04629704,2272.9,2272.8,4.39985]
[1725751135049,2.04629704,2272.9,2272.7,8.79989]
[1725751135310,2.04629704,2272.9,2272.7,8.7999]
[1725751135538,2.04629704,2272.9,2272.7,8.79988]
[1725751135711,2.04629704,2272.9,2272.7,4.39994]
[1725751136573,2.04629704,2272.9,2272.7,8.79989]
[1725751136746,1.99629704,2272.9,2272.7,4.39994]
[1725751138175,1.99629704,2272.9,2272.7,8.79989]
[1725751138745,1.99629704,2272.9,2272.6,4.40015]
[1725751138937,2.46824623,2272.9,2272.6,4.40015]
[1725751139487,3.87711568,2272.7,2272.3,4.4007]
[1725751139639,3.87711568,2272.7,2272.5,4.40042]
[1725751139894,3.87711568,2272.7,2272.4,4.40063]
[1725751140236,1.51981568,2272.5,2272.3,8.80144]
[1725751140727,1.51981568,2272.5,2272.1,2.3505]
[1725751140728,1.51981568,2272.5,2272.1,6.75156]
[1725751140917,1.51981568,2272.3,2272.1,4.40106]
[1725751141098,1.51981568,2272.3,2272.1,8.80218]
[1725751141304,1.51981568,2272.3,2272.2,4.40102]
[1725751144435,1.46981568,2272.3,2272.2,4.40102]
[1725751148496,6.72833,2272.8,2272.3,6.75592]
[1725751148822,1.51981568,2272.5,2272.2,8.80195]
[1725751149029,1.51981568,2272.5,2272.2,4.40093]
[1725751149330,4.02194919,2272.7,2272.2,4.40093]
[1725751149504,1.51981568,2272.6,2272.3,4.40074]
[1725751150311,1.99176487,2272.6,2272.2,8.80183]
[1725751151250,1.99176487,2272.6,2272.3,4.40079]
[1725751158752,1.51981568,2272.4,2272.2,4.4009]
[1725751158950,4.51981568,2272.4,2271.8,4.40174]
[1725751159121,1.51981568,2272.2,2271.9,4.4015]
[1725751159327,1.51981568,2272.2,2272.0,4.4014]
[1725751159726,1.51981568,2272.2,2271.8,4.40167]
[1725751159941,1.51981568,2272.2,2271.9,4.40144]
[1725751162055,3.86011568,2272.2,2271.8,4.40167]
[1725751162276,3.86011568,2272.2,2271.4,6.79329]
[1725751162277,2.3403,2271.9,2271.4,6.79329]
[1725751162488,1.51981568,2271.6,2271.4,4.40239]
[1725751163367,1.51981568,2271.6,2271.4,8.80487]
[1725751163568,1.51981568,2271.6,2271.5,4.40237]
[1725751165784,1.51981568,2271.8,2271.6,4.40215]
[1725751168909,2.2797,2272.3,2272.0,4.40123]
[1725751169201,2.51407956,2272.4,2272.1,4.40111]
[1725751169357,2.51407956,2272.4,2272.2,4.40101]
[1725751169697,2.51407956,2272.3,2272.1,4.40119]
[1725751170837,2.51407956,2272.3,2272.0,8.8025]
[1725751171012,2.51407956,2272.3,2272.0,4.40123]
[1725751171553,1.51981568,2272.1,2272.0,4.40123]
[1725751174453,1.51981568,2272.1,2272.0,9.682913]
[1725751175110,1.51981568,2272.2,2272.1,4.40119]
[1725751179065,3.0,2272.5,2272.2,4.40102]
[1725751179276,1.51981568,2272.5,2272.3,4.40075]
[1725751183021,1.51842907,2272.5,2272.3,4.40075]
[1725751183219,1.51981568,2272.5,2272.3,4.40075]
[1725751183517,1.51981568,2272.5,2272.3,6.77005]
[1725751185291,1.51981568,2272.5,2272.3,7.887157]
[1725751186409,1.51981568,2272.5,2272.3,6.77005]
[1725751187417,2.51407956,2272.8,2272.4,4.40052]
[1725751187627,2.51407956,2272.8,2272.7,4.40005]
[1725751187786,5.51407956,2272.8,2272.7,4.40005]
[1725751198429,5.04213037,2272.8,2272.7,4.40005]
[1725751198632,2.04213037,2272.8,2272.7,4.40005]
[1725751199839,2.51407956,2272.8,2272.7,4.40005]
[1725751200166,5.51407956,2272.8,2272.7,4.40005]
[1725751201721,3.99426388,2272.8,2272.7,4.40005]
[1725751201919,5.51407956,2272.8,2272.7,4.40005]
[1725751202159,5.51407956,2272.8,2272.6,4.40016]
[1725751202324,5.04213037,2272.8,2272.6,4.40016]
[1725751203653,3.0,2272.8,2272.6,4.40014]
[1725751203950,1.51981568,2272.9,2272.7,4.39991]
[1725751205855,1.51981568,2272.9,2272.8,4.39985]
[1725751208321,1.51981568,2272.9,2272.7,4.39991]
[1725751208744,2.51407956,2272.9,2272.7,4.39991]
[1725751209058,3.0,2272.8,2272.7,4.39991]
[1725751221166,4.39911,2273.2,2272.7,4.39991]
[1725751221167,2.3755,2273.6,2272.9,2.2603]
[1725751221377,3.89531568,2273.9,2273.6,4.39831]
[1725751221676,3.89531568,2273.9,2273.6,4.39818]
[1725751221834,1.51981568,2273.7,2273.6,4.39818]
[1725751222028,1.51981568,2273.7,2273.5,4.39848]
[1725751222233,1.51981568,2273.7,2273.6,4.39831]
[1725751222866,1.99176487,2273.7,2273.4,4.3985]
[1725751223078,0.47194919,2273.6,2273.4,4.3985]
[1725751223235,1.51981568,2273.5,2273.4,4.3985]
[1725751223431,1.99176487,2273.5,2273.4,4.3985]
[1725751225276,1.51981568,2273.5,2273.4,4.3985]
[1725751225430,0.47194919,2273.7,2273.4,4.3985]
[1725751225632,1.51981568,2273.6,2273.4,4.3985]
[1725751229574,1.51981568,2273.6,2273.3,4.39872]
[1725751229777,1.66084329,2273.6,2273.3,8.7975]
[1725751230958,1.51981568,2273.6,2273.5,4.3985]
[1725751231378,4.51981568,2273.8,2273.5,4.3985]
[1725751231595,1.51981568,2273.6,2273.3,8.79752]
[1725751231896,1.99176487,2273.6,2273.3,8.79752]
[1725751232199,0.08540174,2273.5,2273.3,8.7975]
[1725751233752,0.08540174,2273.5,2273.4,4.39869]
[1725751234410,1.60521742,2273.5,2273.4,4.39869]
[1725751235142,0.08540174,2273.5,2273.4,4.39869]
[1725751235276,0.08540174,2273.5,2273.4,5.278431]
[1725751235480,1.51981568,2273.7,2273.4,5.278431]
[1725751235807,0.08474779,2273.6,2273.4,4.39869]
[1725751238380,1.51981568,2273.5,2273.3,4.39872]
[1725751238587,1.51981568,2273.5,2273.3,8.79752]
[1725751238777,0.55669698,2273.6,2273.4,4.3986]
[1725751239011,0.08474779,2273.6,2273.4,4.3986]
[1725751242836,0.08474779,2273.6,2273.5,4.3985]
[1725751243199,0.14157994,2273.8,2273.6,4.39828]
[1725751243535,4.99176487,2273.9,2273.6,4.39828]
[1725751243755,3.47194919,2273.9,2273.6,4.39828]
[1725751243893,0.47194919,2273.9,2273.6,4.39828]
[1725751244099,1.51981568,2273.8,2273.6,4.39828]
[1725751245529,0.61383507,2273.9,2273.6,4.39828]
[1725751245705,1.51981568,2273.8,2273.6,4.39828]
[1725751246050,3.0,2274.0,2273.7,6.7279]
[1725751246206,3.0,2274.0,2273.5,4.39836]
[1725751246207,1.51981568,2273.7,2273.5,4.39836]
[1725751246406,1.51981568,2273.7,2273.5,8.79675]
[1725751246918,0.07916869,2273.6,2273.5,8.79675]
[1725751247308,0.07916869,2273.6,2273.5,4.39836]
[1725751252146,1.51981568,2273.7,2273.5,4.39836]
[1725751252346,0.07915585,2273.6,2273.5,4.39836]
[1725751252845,0.07915585,2273.6,2273.5,6.72826]
[1725751253013,0.07915585,2273.6,2273.5,4.39836]
[1725751254403,1.51981568,2273.8,2273.5,4.39836]
[1725751254606,0.07906213,2273.6,2273.5,4.39836]
[1725751254850,1.51981568,2273.8,2273.5,4.39836]
[1725751255018,0.07906213,2273.6,2273.5,4.39836]
[1725751255220,1.51981568,2273.8,2273.5,4.39836]
[1725751255417,0.07626587,2273.6,2273.5,4.39836]
[1725751255727,0.07626587,2273.6,2273.5,4.3985]
[1725751255908,1.51981568,2273.8,2273.6,4.39818]
[1725751256112,0.07639643,2273.7,2273.6,6.72808]
[1725751256318,1.51981568,2273.8,2273.7,4.39811]
[1725751256533,1.5963307,2273.8,2273.7,4.39811]
[1725751257957,2.06827989,2273.8,2273.6,4.39818]
[1725751258115,4.51547989,2273.8,2273.6,4.39818]
[1725751258514,4.51547989,2273.8,2273.6,8.79636]
[1725751259366,2.06827989,2273.8,2273.6,8.79636]
[1725751259526,2.06827989,2273.8,2273.7,4.39811]
[1725751260234,1.5963307,2273.8,2273.7,4.39811]
[1725751262880,0.07651502,2273.8,2273.7,20.471251]
[1725751263165,7.5446307,2274.2,2274.0,4.39753]
[1725751263166,1.99176487,2274.1,2274.0,4.39753]
[1725751263635,1.99176487,2274.1,2273.8,4.39781]
[1725751263842,1.51981568,2273.9,2273.5,4.39836]
[1725751264056,1.51981568,2273.7,2273.6,4.39815]
[1725751264270,0.55,2273.9,2273.7,4.39811]
[1725751264474,2.06981568,2273.9,2273.7,4.39811]
[1725751264973,0.06849774,2273.8,2273.7,4.39811]
[1725751266645,0.06849774,2273.8,2273.6,4.39828]
[1725751266646,1.58831342,2273.8,2273.6,4.39828]
[1725751266847,1.58831342,2273.8,2273.6,8.79648]
[1725751267992,1.58831342,2273.8,2273.7,4.39811]
[1725751270490,0.06849774,2273.8,2273.7,4.39811]
[1725751270657,0.06849774,2273.8,2273.6,8.79641]
[1725751270862,0.06849774,2273.8,2273.6,4.3982]
[1725751270863,1.51981568,2273.7,2273.6,4.3982]
[1725751271053,0.06849774,2273.8,2273.6,8.79641]
[1725751271387,4.41721568,2273.9,2273.6,8.79641]
[1725751271388,0.06614471,2273.7,2273.6,4.3982]
[1725751271618,2.06981568,2273.9,2273.6,4.3982]
[1725751271784,0.06614471,2273.7,2273.6,4.3982]
[1725751271986,2.06981568,2273.9,2273.6,4.3982]
[1725751272291,2.06981568,2273.9,2273.7,4.3981]
[1725751272824,2.06981568,2273.9,2273.7,4.398]
[1725751274020,0.0640765,2273.8,2273.7,4.398]
[1725751275624,0.0640765,2273.8,2273.7,16.512849]
[1725751275790,0.1146307,2274.2,2274.1,4.39734]
[1725751275986,1.04221753,2274.2,2274.1,4.39734]
[1725751278204,2.3781,2274.1,2273.9,4.39767]
[1725751278403,4.91986487,2274.1,2273.8,4.39776]
[1725751278598,1.51981568,2273.9,2273.8,4.39776]
[1725751279390,1.58401079,2273.9,2273.8,4.39776]
[1725751281004,0.06419511,2273.9,2273.8,11.20638]
[1725751281321,2.06981568,2274.1,2273.8,11.20638]
[1725751281322,2.06981568,2274.1,2274.0,4.39753]
[1725751281491,3.1146307,2274.2,2274.1,4.39734]
[1725751281692,1.63444638,2274.2,2274.1,4.39734]
[1725751282794,0.1146307,2274.2,2274.1,12.147567]
[1725751282989,0.1791475,2274.2,2274.1,16.544907]
[1725751283691,0.1791475,2274.2,2274.1,12.147567]
[1725751284630,0.1791475,2274.2,2274.1,9.674167]
[1725751285522,0.1291475,2274.2,2274.1,12.147567]
[1725751286199,0.1291475,2274.2,2274.1,9.674167]
[1725751289831,0.06115056,2274.2,2274.1,9.674167]
[1725751290034,1.51981568,2274.3,2274.2,8.7943]
[1725751290535,1.51981568,2274.5,2274.3,4.39685]
[1725751290733,1.99176487,2274.5,2274.3,4.39685]
[1725751292828,5.87450683,2274.4,2273.8,4.39781]
[1725751293037,1.51981568,2273.9,2273.7,8.79606]
[1725751293197,1.51981568,2273.9,2273.5,4.39845]
[1725751293520,1.31981568,2273.7,2273.5,4.39845]
[1725751293708,1.31981568,2273.7,2273.6,4.39831]
[1725751297503,1.51981568,2273.9,2273.7,4.39811]
[1725751298133,3.0,2274.0,2273.7,6.78871]
[1725751298437,4.51981568,2274.1,2273.7,6.78871]
[1725751298598,1.51981568,2274.1,2273.7,6.78871]
[1725751298801,0.47194919,2274.2,2273.9,4.39773]
[1725751299002,1.99176487,2274.2,2274.0,4.39748]
[1725751299229,0.47194919,2274.1,2274.0,4.39748]
[1725751302309,0.47194919,2274.1,2273.8,4.39782]
[1725751302514,1.51981568,2274.0,2273.8,4.39782]
[1725751304852,1.51981568,2274.0,2273.5,6.78897]
[1725751305039,1.51981568,2273.6,2273.5,4.39837]
[1725751305429,1.51981568,2273.8,2273.5,4.39837]
[1725751307263,1.51981568,2273.6,2273.4,4.39851]
[1725751307618,1.51981568,2273.6,2273.2,4.39893]
[1725751308043,1.51981568,2273.4,2273.2,4.39893]
[1725751308553,7.39803,2273.8,2273.3,4.39886]
[1725751308554,1.51981568,2273.6,2273.3,4.39886]
[1725751309761,1.51981568,2273.6,2273.2,4.39893]
[1725751310585,1.51981568,2273.4,2273.2,4.39893]
[1725751311361,1.51981568,2273.4,2273.2,8.7979]
[1725751314568,1.51981568,2273.4,2273.3,4.39889]
[1725751315395,1.51981568,2273.6,2273.3,4.39889]
[1725751318369,1.51981568,2273.6,2273.4,4.3986]
[1725751321574,1.51981568,2273.6,2273.5,4.3985]
[1725751322180,3.0,2273.8,2273.6,4.39829]
[1725751322509,1.51981568,2273.7,2273.6,4.39829]
[1725751323574,3.0,2273.8,2273.6,4.39829]
[1725751323906,8.94981568,2273.9,2273.8,4.39792]
[1725751324112,1.99176487,2273.9,2273.8,4.39792]
[1725751324624,6.86546,2274.3,2273.8,4.39792]
[1725751324625,1.51981568,2274.1,2273.9,4.39773]
[1725751325523,1.51981568,2274.1,2273.9,5.079373]
[1725751325682,1.51981568,2274.1,2274.0,4.39753]
[1725751326427,2.44740251,2274.1,2273.9,5.079373]
[1725751326626,0.47194919,2274.0,2273.9,4.39773]
[1725751331013,0.47194919,2274.0,2273.8,4.39791]
[1725751331224,3.98831568,2274.1,2273.8,4.39791]
[1725751331533,1.51981568,2274.1,2273.8,8.79582]
[1725751332691,1.51981568,2274.1,2273.8,4.39791]
[1725751332897,1.51981568,2274.1,2273.8,4.39783]
[1725751333323,1.51981568,2274.1,2273.8,8.79565]